[Event "Live Chess"]
[Site "Chess.com"]
[Date "2024.06.02"]
[Round "-"]
[White "PureDashingOctopus"]
[Black "wadsy27"]
[Result "0-1"]
[WhiteElo "2274"]
[BlackElo "2596"]
[TimeControl "300"]
[EndTime "4:47:28 PDT"]
[Termination "wadsy27 won by checkmate"]

1. e4 {[%clk 0:04:55.8]} 1... e6 {[%clk 0:04:57.8]} 2. d4 {[%clk 0:04:54.7]}
2... d5 {[%clk 0:04:57.7]} 3. Nd2 {[%clk 0:04:53.9]} 3... h6 {[%clk 0:04:53.5]}
4. c3 {[%clk 0:04:49.7]} 4... Nf6 {[%clk 0:04:52.5]} 5. e5 {[%clk 0:04:48.5]}
5... Nfd7 {[%clk 0:04:51.8]} 6. Bd3 {[%clk 0:04:48]} 6... c5 {[%clk 0:04:51.3]}
7. Ne2 {[%clk 0:04:47.4]} 7... Nc6 {[%clk 0:04:48.2]} 8. O-O {[%clk 0:04:43.6]}
8... a5 {[%clk 0:04:42.5]} 9. f4 {[%clk 0:04:41.3]} 9... cxd4 {[%clk 0:04:35.4]}
10. cxd4 {[%clk 0:04:39.5]} 10... Qb6 {[%clk 0:04:33.1]} 11. Nf3 {[%clk
0:04:36.2]} 11... a4 {[%clk 0:04:30.2]} 12. Kh1 {[%clk 0:04:33.4]} 12... g6
{[%clk 0:04:20.4]} 13. g4 {[%clk 0:04:31.4]} 13... h5 {[%clk 0:04:16.8]} 14.
gxh5 {[%clk 0:04:30.4]} 14... Rxh5 {[%clk 0:04:15.6]} 15. Ng3 {[%clk 0:04:29.4]}
15... Rh8 {[%clk 0:04:12.3]} 16. a3 {[%clk 0:04:14.7]} 16... Nxd4 {[%clk
0:04:08]} 17. Be3 {[%clk 0:04:09.3]} 17... Nxf3 {[%clk 0:04:07.1]} 18. Qxf3
{[%clk 0:04:00.4]} 18... Qxb2 {[%clk 0:03:58.6]} 19. Qg4 {[%clk 0:03:56.2]}
19... Qxh2# {[%clk 0:03:56.9]} 0-1

[Event "Live Chess"]
[Site "Chess.com"]
[Date "2024.06.02"]
[Round "-"]
[White "Pandreq"]
[Black "Bradfield133"]
[Result "0-1"]
[WhiteElo "1234"]
[BlackElo "1844"]
[TimeControl "300"]
[EndTime "4:47:37 PDT"]
[Termination "Bradfield133 won by resignation"]

1. d4 {[%clk 0:04:58.4]} 1... d6 {[%clk 0:04:57.9]} 2. c4 {[%clk 0:04:57.3]}
2... f5 {[%clk 0:04:56.3]} 3. Nc3 {[%clk 0:04:56.8]} 3... Nf6 {[%clk 0:04:55.4]}
4. Nf3 {[%clk 0:04:55.2]} 4... c6 {[%clk 0:04:52.3]} 5. Bg5 {[%clk 0:04:53.1]}
5... Nbd7 {[%clk 0:04:50]} 6. e3 {[%clk 0:04:50.6]} 6... e5 {[%clk 0:04:48.3]}
7. dxe5 {[%clk 0:04:40.6]} 7... dxe5 {[%clk 0:04:46.4]} 8. Bxf6 {[%clk
0:04:36.2]} 8... Qxf6 {[%clk 0:04:45]} 9. Bd3 {[%clk 0:04:26.4]} 9... e4 {[%clk
0:04:40.6]} 10. Bxe4 {[%clk 0:04:20.6]} 10... fxe4 {[%clk 0:04:39.4]} 11. Nxe4
{[%clk 0:04:20.5]} 11... Qxb2 {[%clk 0:04:33.1]} 0-1

[Event "Live Chess"]
[Site "Chess.com"]
[Date "2024.06.02"]
[Round "-"]
[White "dhairyapandyauk"]
[Black "RamsayFlayer"]
[Result "0-1"]
[WhiteElo "1638"]
[BlackElo "1926"]
[TimeControl "300"]
[EndTime "4:47:44 PDT"]
[Termination "RamsayFlayer won by checkmate"]

1. e4 {[%clk 0:04:58.3]} 1... e5 {[%clk 0:04:59]} 2. Nf3 {[%clk 0:04:57.3]} 2...
Nc6 {[%clk 0:04:58.4]} 3. c3 {[%clk 0:04:56.8]} 3... Nf6 {[%clk 0:04:57.5]} 4.
d4 {[%clk 0:04:56.1]} 4... exd4 {[%clk 0:04:55.9]} 5. e5 {[%clk 0:04:55.6]} 5...
Ne4 {[%clk 0:04:54.2]} 6. cxd4 {[%clk 0:04:54.7]} 6... d5 {[%clk 0:04:52.5]} 7.
Nc3 {[%clk 0:04:53.6]} 7... Bb4 {[%clk 0:04:49.3]} 8. Bd2 {[%clk 0:04:52.4]}
8... Nxd2 {[%clk 0:04:47.4]} 9. Qxd2 {[%clk 0:04:50.6]} 9... Bg4 {[%clk
0:04:43.3]} 10. Be2 {[%clk 0:04:47.5]} 10... O-O {[%clk 0:04:30.5]} 11. h3
{[%clk 0:04:44.5]} 11... Bh5 {[%clk 0:04:24.8]} 12. O-O {[%clk 0:04:42.8]} 12...
Na5 {[%clk 0:03:59.5]} 13. Qc2 {[%clk 0:04:34.7]} 13... Nc4 {[%clk 0:03:51.6]}
14. a3 {[%clk 0:04:29.5]} 14... Ba5 {[%clk 0:03:44.7]} 15. b4 {[%clk 0:04:27.5]}
15... Bb6 {[%clk 0:03:42.9]} 16. Rfd1 {[%clk 0:04:17.7]} 16... c6 {[%clk
0:03:33.6]} 17. Bxc4 {[%clk 0:04:14.9]} 17... dxc4 {[%clk 0:03:32]} 18. Qf5
{[%clk 0:04:12.6]} 18... Bg6 {[%clk 0:03:22.6]} 19. Qf4 {[%clk 0:04:08.6]} 19...
Bd3 {[%clk 0:03:21.4]} 20. Na4 {[%clk 0:03:57.5]} 20... f6 {[%clk 0:03:11.8]}
21. Nb2 {[%clk 0:03:43.3]} 21... fxe5 {[%clk 0:03:08.7]} 22. Qxe5 {[%clk
0:03:42.6]} 22... Rxf3 {[%clk 0:02:35.1]} 23. gxf3 {[%clk 0:03:40]} 23... Bxd4
{[%clk 0:02:33.1]} 24. Qe6+ {[%clk 0:03:39.2]} 24... Kh8 {[%clk 0:02:31.7]} 25.
Nxd3 {[%clk 0:03:19]} 25... Bxa1 {[%clk 0:02:21.9]} 26. Qxc4 {[%clk 0:03:12.9]}
26... Qg5+ {[%clk 0:02:07]} 27. Qg4 {[%clk 0:03:10.6]} 27... Qxg4+ {[%clk
0:02:04.3]} 28. fxg4 {[%clk 0:03:09.8]} 28... Bf6 {[%clk 0:02:03.5]} 29. Nc5
{[%clk 0:03:07.8]} 29... Rd8 {[%clk 0:01:40.5]} 30. Rxd8+ {[%clk 0:03:05.7]}
30... Bxd8 {[%clk 0:01:39.3]} 31. Nxb7 {[%clk 0:03:05.1]} 31... Bc7 {[%clk
0:01:30.9]} 32. Nc5 {[%clk 0:03:02.1]} 32... Kg8 {[%clk 0:01:26.9]} 33. Kg2
{[%clk 0:03:00]} 33... Kf7 {[%clk 0:01:25.4]} 34. Kf3 {[%clk 0:02:58.3]} 34...
Ke7 {[%clk 0:01:22.2]} 35. Ke4 {[%clk 0:02:57.3]} 35... Kd6 {[%clk 0:01:16.9]}
36. f4 {[%clk 0:02:56.4]} 36... Bb6 {[%clk 0:01:14]} 37. g5 {[%clk 0:02:49.3]}
37... g6 {[%clk 0:00:49.7]} 38. h4 {[%clk 0:02:42.8]} 38... Bxc5 {[%clk
0:00:44.6]} 39. bxc5+ {[%clk 0:02:40.9]} 39... Kxc5 {[%clk 0:00:44.5]} 40. h5
{[%clk 0:02:38.1]} 40... gxh5 {[%clk 0:00:18.3]} 41. f5 {[%clk 0:02:36.1]} 41...
Kd6 {[%clk 0:00:17]} 42. g6 {[%clk 0:02:35.3]} 42... hxg6 {[%clk 0:00:15.8]} 43.
fxg6 {[%clk 0:02:34.3]} 43... Ke6 {[%clk 0:00:15.4]} 44. Kf4 {[%clk 0:02:33.2]}
44... Kf6 {[%clk 0:00:14.6]} 45. g7 {[%clk 0:02:32.6]} 45... Kxg7 {[%clk
0:00:13.9]} 46. Kg5 {[%clk 0:02:32]} 46... c5 {[%clk 0:00:12.7]} 47. Kxh5 {[%clk
0:02:31.4]} 47... c4 {[%clk 0:00:12.2]} 48. Kg4 {[%clk 0:02:30.7]} 48... c3
{[%clk 0:00:12.1]} 49. Kf3 {[%clk 0:02:30]} 49... c2 {[%clk 0:00:12]} 50. Ke2
{[%clk 0:02:29.5]} 50... c1=Q {[%clk 0:00:11.9]} 51. Kd3 {[%clk 0:02:29]} 51...
Qxa3+ {[%clk 0:00:11.5]} 52. Kd4 {[%clk 0:02:27.9]} 52... Qb4+ {[%clk
0:00:11.1]} 53. Ke3 {[%clk 0:02:27.1]} 53... a5 {[%clk 0:00:11]} 54. Kd3 {[%clk
0:02:26.5]} 54... a4 {[%clk 0:00:10.9]} 55. Ke3 {[%clk 0:02:25.3]} 55... a3
{[%clk 0:00:10.8]} 56. Kd3 {[%clk 0:02:24.7]} 56... a2 {[%clk 0:00:10.7]} 57.
Kc2 {[%clk 0:02:22.8]} 57... a1=Q {[%clk 0:00:10.6]} 58. Kd3 {[%clk 0:02:20.8]}
58... Qd1+ {[%clk 0:00:09.6]} 59. Ke3 {[%clk 0:02:19.8]} 59... Qbd4# {[%clk
0:00:08.9]} 0-1

[Event "Live Chess"]
[Site "Chess.com"]
[Date "2024.06.02"]
[Round "-"]
[White "friarnator"]
[Black "upoe610"]
[Result "1-0"]
[WhiteElo "2208"]
[BlackElo "2134"]
[TimeControl "300"]
[EndTime "4:47:52 PDT"]
[Termination "friarnator won by resignation"]

1. d4 {[%clk 0:04:58]} 1... Nf6 {[%clk 0:04:58.8]} 2. Nc3 {[%clk 0:04:57.3]}
2... d5 {[%clk 0:04:57.5]} 3. Bf4 {[%clk 0:04:56.6]} 3... e6 {[%clk 0:04:56.5]}
4. e3 {[%clk 0:04:56.1]} 4... Bb4 {[%clk 0:04:54.7]} 5. f3 {[%clk 0:04:54]} 5...
c5 {[%clk 0:04:51.1]} 6. Ne2 {[%clk 0:04:50.5]} 6... Nc6 {[%clk 0:04:49.4]} 7.
a3 {[%clk 0:04:49]} 7... Bxc3+ {[%clk 0:04:45.1]} 8. Nxc3 {[%clk 0:04:48.9]}
8... cxd4 {[%clk 0:04:44.4]} 9. exd4 {[%clk 0:04:47.8]} 9... Nh5 {[%clk
0:04:43.2]} 10. Be3 {[%clk 0:04:43.3]} 10... O-O {[%clk 0:04:41.3]} 11. Bd3
{[%clk 0:04:39.7]} 11... f5 {[%clk 0:04:40.1]} 12. O-O {[%clk 0:04:36]} 12... f4
{[%clk 0:04:39.1]} 13. Bf2 {[%clk 0:04:34.8]} 13... Qg5 {[%clk 0:04:36.1]} 14.
Kh1 {[%clk 0:04:33]} 14... Rf6 {[%clk 0:04:32.8]} 15. Ne2 {[%clk 0:04:26.6]}
15... Rh6 {[%clk 0:04:31]} 16. Qd2 {[%clk 0:04:21.3]} 16... e5 {[%clk
0:04:27.4]} 17. g4 {[%clk 0:03:46.8]} 17... Bxg4 {[%clk 0:04:07.3]} 18. fxg4
{[%clk 0:03:42.3]} 18... Qxg4 {[%clk 0:04:06.2]} 19. Rg1 {[%clk 0:03:34.8]}
19... Qf3+ {[%clk 0:04:04.4]} 20. Rg2 {[%clk 0:03:34]} 20... e4 {[%clk
0:04:01.4]} 21. Ng1 {[%clk 0:03:29.5]} 21... Ng3+ {[%clk 0:03:48.9]} 22. Bxg3
{[%clk 0:03:26.4]} 22... Rxh2+ {[%clk 0:03:26.3]} 23. Bxh2 {[%clk 0:03:21.5]}
23... Qh5 {[%clk 0:03:19.6]} 24. Qxf4 {[%clk 0:03:15.3]} 24... exd3 {[%clk
0:03:18.7]} 25. Qg4 {[%clk 0:03:02.7]} 25... Qf7 {[%clk 0:03:16.7]} 26. Rf1
{[%clk 0:02:58.3]} 1-0

[Event "Live Chess"]
[Site "Chess.com"]
[Date "2024.06.02"]
[Round "-"]
[White "E2E4colchester"]
[Black "MovebyMove"]
[Result "0-1"]
[WhiteElo "1365"]
[BlackElo "2446"]
[TimeControl "300"]
[EndTime "4:48:00 PDT"]
[Termination "MovebyMove won by checkmate"]

1. d4 {[%clk 0:04:57.1]} 1... d5 {[%clk 0:04:58.2]} 2. c4 {[%clk 0:04:55.3]}
2... dxc4 {[%clk 0:04:56.5]} 3. e3 {[%clk 0:04:54.5]} 3... Nf6 {[%clk
0:04:53.9]} 4. Bxc4 {[%clk 0:04:53.6]} 4... e6 {[%clk 0:04:52.8]} 5. Nc3 {[%clk
0:04:52.7]} 5... c5 {[%clk 0:04:45.2]} 6. Nf3 {[%clk 0:04:47.5]} 6... Nc6 {[%clk
0:04:42.3]} 7. O-O {[%clk 0:04:43.9]} 7... a6 {[%clk 0:04:41.4]} 8. dxc5 {[%clk
0:04:41.8]} 8... Qxd1 {[%clk 0:04:38]} 9. Rxd1 {[%clk 0:04:40.7]} 9... Bxc5
{[%clk 0:04:36.8]} 10. a3 {[%clk 0:04:36.8]} 10... O-O {[%clk 0:04:33.4]} 11. b4
{[%clk 0:04:35.8]} 11... Be7 {[%clk 0:04:32.4]} 12. Bb2 {[%clk 0:04:32.2]} 12...
b5 {[%clk 0:04:31]} 13. Bb3 {[%clk 0:04:29.7]} 13... Bb7 {[%clk 0:04:29.6]} 14.
Ne2 {[%clk 0:04:20.4]} 14... Rfd8 {[%clk 0:04:25.7]} 15. h3 {[%clk 0:04:18.4]}
15... Kf8 {[%clk 0:04:18.3]} 16. Ned4 {[%clk 0:04:07.7]} 16... Nxd4 {[%clk
0:04:15.1]} 17. Bxd4 {[%clk 0:04:06.1]} 17... a5 {[%clk 0:03:55.5]} 18. Ne5
{[%clk 0:03:51.3]} 18... axb4 {[%clk 0:03:45.1]} 19. axb4 {[%clk 0:03:49.9]}
19... Bxb4 {[%clk 0:03:40.2]} 20. Nd3 {[%clk 0:03:32.4]} 20... Be7 {[%clk
0:03:21]} 21. Rxa8 {[%clk 0:03:26.8]} 21... Rxa8 {[%clk 0:03:17.8]} 22. Bc5
{[%clk 0:03:24.1]} 22... Rd8 {[%clk 0:03:07.1]} 23. Bxe7+ {[%clk 0:03:17.5]}
23... Kxe7 {[%clk 0:03:05.5]} 24. Nc5 {[%clk 0:03:15.3]} 24... Rxd1+ {[%clk
0:03:03.3]} 25. Bxd1 {[%clk 0:03:12.2]} 25... Bc6 {[%clk 0:02:59.6]} 26. Be2
{[%clk 0:03:06]} 26... Kd6 {[%clk 0:02:53.3]} 27. Nb3 {[%clk 0:03:00.6]} 27...
b4 {[%clk 0:02:35.4]} 28. Nd4 {[%clk 0:02:56.8]} 28... Bd5 {[%clk 0:02:28.9]}
29. Kf1 {[%clk 0:02:52.1]} 29... Ne4 {[%clk 0:02:23.6]} 30. Bd3 {[%clk
0:02:47.6]} 30... Nc5 {[%clk 0:01:49]} 31. Bxh7 {[%clk 0:02:41.3]} 31... g6
{[%clk 0:01:46.6]} 32. f3 {[%clk 0:02:30.5]} 32... b3 {[%clk 0:01:42.1]} 33.
Nxb3 {[%clk 0:02:29.3]} 33... Bxb3 {[%clk 0:01:38]} 34. Ke2 {[%clk 0:02:27.7]}
34... Ke7 {[%clk 0:01:36.6]} 35. g4 {[%clk 0:02:24.9]} 35... Kf6 {[%clk
0:01:35.2]} 36. e4 {[%clk 0:02:21]} 36... Kg7 {[%clk 0:01:33.8]} 37. Bxg6 {[%clk
0:02:19]} 37... fxg6 {[%clk 0:01:29.5]} 38. Ke3 {[%clk 0:02:18.1]} 38... Nd7
{[%clk 0:01:23.4]} 39. Kf4 {[%clk 0:02:16.5]} 39... Bd1 {[%clk 0:01:19.8]} 40.
h4 {[%clk 0:02:00.2]} 40... Kf6 {[%clk 0:01:14.2]} 41. g5+ {[%clk 0:01:58.9]}
41... Kf7 {[%clk 0:01:11.3]} 42. Kg4 {[%clk 0:01:54.2]} 42... Ne5+ {[%clk
0:01:09.4]} 43. Kf4 {[%clk 0:01:52.4]} 43... Nxf3 {[%clk 0:01:08.3]} 44. Kg3
{[%clk 0:01:46.7]} 44... Ne5 {[%clk 0:01:06.5]} 45. Kf4 {[%clk 0:01:45.4]} 45...
Nc6 {[%clk 0:01:05.3]} 46. Kg3 {[%clk 0:01:44]} 46... Bh5 {[%clk 0:01:03.9]} 47.
Kf4 {[%clk 0:01:42.7]} 47... Ke7 {[%clk 0:01:02.9]} 48. Kg3 {[%clk 0:01:41.4]}
48... Kd6 {[%clk 0:01:01.9]} 49. Kf4 {[%clk 0:01:39.8]} 49... e5+ {[%clk
0:01:01]} 50. Kg3 {[%clk 0:01:38.3]} 50... Kc5 {[%clk 0:01:00.1]} 51. Kf2 {[%clk
0:01:36.1]} 51... Kd4 {[%clk 0:00:59.2]} 52. Kg3 {[%clk 0:01:32.7]} 52... Kxe4
{[%clk 0:00:58.2]} 53. Kf2 {[%clk 0:01:31.9]} 53... Kf4 {[%clk 0:00:57.3]} 54.
Ke1 {[%clk 0:01:30.1]} 54... e4 {[%clk 0:00:56.5]} 55. Kf2 {[%clk 0:01:28.7]}
55... e3+ {[%clk 0:00:55.5]} 56. Ke1 {[%clk 0:01:26]} 56... Nd4 {[%clk
0:00:53.1]} 57. Kf1 {[%clk 0:01:23.6]} 57... Kg3 {[%clk 0:00:47.3]} 58. Ke1
{[%clk 0:01:21.9]} 58... Nc2+ {[%clk 0:00:45.3]} 59. Kf1 {[%clk 0:01:18]} 59...
e2+ {[%clk 0:00:44.3]} 60. Kg1 {[%clk 0:01:14.4]} 60... e1=R# {[%clk 0:00:42.6]}
0-1

[Event "Live Chess"]
[Site "Chess.com"]
[Date "2024.06.02"]
[Round "-"]
[White "RichardABates"]
[Black "lateforthesky"]
[Result "1-0"]
[WhiteElo "2340"]
[BlackElo "2038"]
[TimeControl "300"]
[EndTime "4:48:20 PDT"]
[Termination "RichardABates won by resignation"]

1. d4 {[%clk 0:04:55.6]} 1... Nf6 {[%clk 0:04:58.3]} 2. Nf3 {[%clk 0:04:54]}
2... g6 {[%clk 0:04:57.4]} 3. g3 {[%clk 0:04:52.5]} 3... Bg7 {[%clk 0:04:56.9]}
4. Bg2 {[%clk 0:04:51.7]} 4... O-O {[%clk 0:04:56.5]} 5. c4 {[%clk 0:04:50.6]}
5... d6 {[%clk 0:04:55.9]} 6. O-O {[%clk 0:04:49.5]} 6... Nbd7 {[%clk
0:04:55.5]} 7. Nc3 {[%clk 0:04:48.1]} 7... e5 {[%clk 0:04:55.1]} 8. e4 {[%clk
0:04:46.7]} 8... exd4 {[%clk 0:04:53.6]} 9. Nxd4 {[%clk 0:04:45.5]} 9... Re8
{[%clk 0:04:53.1]} 10. Rb1 {[%clk 0:04:43.4]} 10... a6 {[%clk 0:04:49.8]} 11. a4
{[%clk 0:04:40.8]} 11... a5 {[%clk 0:04:44.4]} 12. b3 {[%clk 0:04:37.1]} 12...
Ne5 {[%clk 0:04:37.6]} 13. h3 {[%clk 0:04:32.2]} 13... Bd7 {[%clk 0:04:33.3]}
14. Ndb5 {[%clk 0:04:24.2]} 14... Nc6 {[%clk 0:04:26.3]} 15. Nd5 {[%clk
0:04:19.8]} 15... Rc8 {[%clk 0:04:21.6]} 16. Bg5 {[%clk 0:04:16.5]} 16... h6
{[%clk 0:04:03.8]} 17. Nxf6+ {[%clk 0:04:14.2]} 17... Bxf6 {[%clk 0:04:02.4]}
18. Bxh6 {[%clk 0:04:13.3]} 18... Nb4 {[%clk 0:03:50.9]} 19. Qd2 {[%clk
0:04:07.9]} 19... Bc6 {[%clk 0:03:47.6]} 20. Rbe1 {[%clk 0:04:04.7]} 20... Qe7
{[%clk 0:03:36.1]} 21. f4 {[%clk 0:04:01]} 21... Bg7 {[%clk 0:03:31.8]} 22. Bxg7
{[%clk 0:03:59.2]} 22... Kxg7 {[%clk 0:03:30.7]} 23. f5 {[%clk 0:03:47.6]} 23...
Qe5 {[%clk 0:03:29.5]} 24. f6+ {[%clk 0:03:43]} 24... Kh7 {[%clk 0:03:27]} 25.
Rf4 {[%clk 0:03:37.9]} 1-0

[Event "Live Chess"]
[Site "Chess.com"]
[Date "2024.06.02"]
[Round "-"]
[White "RuslanChessN"]
[Black "LL220284LL"]
[Result "0-1"]
[WhiteElo "1908"]
[BlackElo "2499"]
[TimeControl "300"]
[EndTime "4:48:28 PDT"]
[Termination "LL220284LL won by resignation"]

1. d4 {[%clk 0:04:55.9]} 1... Nf6 {[%clk 0:04:58.8]} 2. c4 {[%clk 0:04:54.4]}
2... c5 {[%clk 0:04:57.7]} 3. d5 {[%clk 0:04:52.2]} 3... b5 {[%clk 0:04:55.8]}
4. cxb5 {[%clk 0:04:45.6]} 4... a6 {[%clk 0:04:54.2]} 5. bxa6 {[%clk 0:04:45.5]}
5... Bxa6 {[%clk 0:04:53]} 6. Nc3 {[%clk 0:04:43.7]} 6... g6 {[%clk 0:04:49.5]}
7. e4 {[%clk 0:04:42.2]} 7... Bxf1 {[%clk 0:04:49.4]} 8. Kxf1 {[%clk 0:04:40.7]}
8... Bg7 {[%clk 0:04:48.8]} 9. g3 {[%clk 0:04:40.4]} 9... O-O {[%clk 0:04:47.6]}
10. Kg2 {[%clk 0:04:39.9]} 10... d6 {[%clk 0:04:44.9]} 11. Nf3 {[%clk
0:04:39.4]} 11... Nbd7 {[%clk 0:04:40.1]} 12. Qe2 {[%clk 0:04:37.2]} 12... Nb6
{[%clk 0:04:35.9]} 13. Nd2 {[%clk 0:04:35.8]} 13... Qd7 {[%clk 0:04:24.3]} 14.
Nc4 {[%clk 0:04:34.2]} 14... Rfb8 {[%clk 0:04:21.9]} 15. Rb1 {[%clk 0:04:23.3]}
15... Nxc4 {[%clk 0:04:14.6]} 16. Qxc4 {[%clk 0:04:21.1]} 16... Rb4 {[%clk
0:04:14.1]} 17. Qd3 {[%clk 0:04:15.9]} 17... Qb7 {[%clk 0:04:03.5]} 18. b3
{[%clk 0:04:12]} 18... Nd7 {[%clk 0:03:59.3]} 19. Bb2 {[%clk 0:03:50.6]} 19...
c4 {[%clk 0:03:52.4]} 20. Qf3 {[%clk 0:03:29.5]} 20... Ne5 {[%clk 0:03:46.8]}
21. Qe2 {[%clk 0:03:24.6]} 21... cxb3 {[%clk 0:03:37.4]} 22. a3 {[%clk
0:02:56.6]} 22... Rb6 {[%clk 0:03:27.9]} 23. Nd1 {[%clk 0:02:45.6]} 23... Rc8
{[%clk 0:03:21.9]} 24. Ne3 {[%clk 0:02:43.2]} 24... Rb5 {[%clk 0:03:16.8]} 25.
Rhc1 {[%clk 0:02:41.2]} 25... Rbc5 {[%clk 0:03:15.8]} 26. Rxc5 {[%clk
0:02:35.2]} 26... Rxc5 {[%clk 0:03:15.7]} 27. f4 {[%clk 0:02:24.5]} 27... Nd7
{[%clk 0:03:12]} 28. Bxg7 {[%clk 0:02:22.7]} 28... Kxg7 {[%clk 0:03:11.9]} 29.
Qb2+ {[%clk 0:02:21.1]} 29... Nf6 {[%clk 0:03:03.8]} 30. e5 {[%clk 0:02:11.8]}
30... Nxd5 {[%clk 0:03:00.4]} 31. exd6+ {[%clk 0:02:05.7]} 31... Kg8 {[%clk
0:02:57.7]} 32. Nxd5 {[%clk 0:01:44.8]} 32... Qxd5+ {[%clk 0:02:57.6]} 33. Kg1
{[%clk 0:01:38.5]} 33... Rc2 {[%clk 0:02:51.6]} 0-1

[Event "Live Chess"]
[Site "Chess.com"]
[Date "2024.06.02"]
[Round "-"]
[White "ACM42"]
[Black "road2gm5000"]
[Result "1-0"]
[WhiteElo "2185"]
[BlackElo "1103"]
[TimeControl "300"]
[EndTime "4:48:49 PDT"]
[Termination "ACM42 won by checkmate"]

1. e4 {[%clk 0:04:57]} 1... c6 {[%clk 0:04:56.3]} 2. d4 {[%clk 0:04:55.3]} 2...
d5 {[%clk 0:04:56]} 3. e5 {[%clk 0:04:54.7]} 3... c5 {[%clk 0:04:55.2]} 4. c3
{[%clk 0:04:53.5]} 4... Nc6 {[%clk 0:04:54.5]} 5. Nf3 {[%clk 0:04:51.5]} 5...
cxd4 {[%clk 0:04:54.1]} 6. cxd4 {[%clk 0:04:50.6]} 6... Bg4 {[%clk 0:04:53.8]}
7. Bb5 {[%clk 0:04:49.5]} 7... e6 {[%clk 0:04:52.7]} 8. Nc3 {[%clk 0:04:48.6]}
8... Ne7 {[%clk 0:04:46.2]} 9. Be3 {[%clk 0:04:47.7]} 9... Nf5 {[%clk
0:04:45.3]} 10. h3 {[%clk 0:04:41.1]} 10... Nxe3 {[%clk 0:04:38.1]} 11. fxe3
{[%clk 0:04:39.8]} 11... Bh5 {[%clk 0:04:36.5]} 12. O-O {[%clk 0:04:37.6]} 12...
Be7 {[%clk 0:04:33.5]} 13. Rc1 {[%clk 0:04:19.3]} 13... O-O {[%clk 0:04:00.2]}
14. Ne2 {[%clk 0:04:04.7]} 14... Qb6 {[%clk 0:03:53.3]} 15. Qa4 {[%clk
0:03:52.9]} 15... Rac8 {[%clk 0:03:48.2]} 16. a3 {[%clk 0:03:46.1]} 16... a6
{[%clk 0:03:47]} 17. Bd3 {[%clk 0:03:44.8]} 17... Nxe5 {[%clk 0:03:28.3]} 18.
Nxe5 {[%clk 0:03:34.9]} 18... Bxe2 {[%clk 0:03:20.2]} 19. Bxe2 {[%clk
0:03:32.6]} 19... Qxb2 {[%clk 0:03:18.9]} 20. Rxc8 {[%clk 0:03:27.8]} 20... Rxc8
{[%clk 0:03:17.7]} 21. Bg4 {[%clk 0:03:23]} 21... Qd2 {[%clk 0:03:13.8]} 22. Qd7
{[%clk 0:03:13.3]} 22... Qxe3+ {[%clk 0:03:07.6]} 23. Kh1 {[%clk 0:03:09.5]}
23... Rf8 {[%clk 0:03:02.3]} 24. Qxe7 {[%clk 0:03:08.1]} 24... Qxd4 {[%clk
0:03:00.1]} 25. Nxf7 {[%clk 0:03:06.5]} 25... Qb2 {[%clk 0:02:31.4]} 26. Nh6+
{[%clk 0:03:02.6]} 26... gxh6 {[%clk 0:02:25.8]} 27. Rxf8# {[%clk 0:03:02.5]}
1-0

[Event "Live Chess"]
[Site "Chess.com"]
[Date "2024.06.02"]
[Round "-"]
[White "TheSmoulderingMaster"]
[Black "JanMur7"]
[Result "0-1"]
[WhiteElo "1778"]
[BlackElo "2298"]
[TimeControl "300"]
[EndTime "4:48:50 PDT"]
[Termination "JanMur7 won by resignation"]

1. e4 {[%clk 0:04:58]} 1... g6 {[%clk 0:04:58.8]} 2. d4 {[%clk 0:04:53.5]} 2...
Bg7 {[%clk 0:04:56.8]} 3. Nc3 {[%clk 0:04:52.7]} 3... c5 {[%clk 0:04:55]} 4. Be3
{[%clk 0:04:47.9]} 4... cxd4 {[%clk 0:04:49.1]} 5. Bxd4 {[%clk 0:04:46.7]} 5...
Nf6 {[%clk 0:04:48]} 6. Nf3 {[%clk 0:04:44.4]} 6... d6 {[%clk 0:04:47.1]} 7. Bc4
{[%clk 0:04:42.7]} 7... Nc6 {[%clk 0:04:45.4]} 8. Be3 {[%clk 0:04:39.4]} 8...
O-O {[%clk 0:04:44]} 9. O-O {[%clk 0:04:37.8]} 9... Ng4 {[%clk 0:04:42.5]} 10.
Bf4 {[%clk 0:04:35.4]} 10... Nge5 {[%clk 0:04:41.1]} 11. Bb3 {[%clk 0:04:33.3]}
11... Bg4 {[%clk 0:04:39.1]} 12. h3 {[%clk 0:04:26.6]} 12... Nxf3+ {[%clk
0:04:37.5]} 13. gxf3 {[%clk 0:04:25]} 13... Bxh3 {[%clk 0:04:36.3]} 14. Kh2
{[%clk 0:04:23.9]} 14... Bxf1 {[%clk 0:04:34.3]} 15. Qxf1 {[%clk 0:04:22.7]}
15... Qa5 {[%clk 0:04:28]} 16. Nd5 {[%clk 0:04:19.9]} 16... e6 {[%clk
0:04:26.4]} 17. Nc3 {[%clk 0:04:15.2]} 17... Qh5+ {[%clk 0:04:24]} 18. Kg2
{[%clk 0:04:13.4]} 18... Ne5 {[%clk 0:04:21.5]} 19. Qe2 {[%clk 0:04:11.1]} 19...
Bh6 {[%clk 0:04:15.5]} 20. Rh1 {[%clk 0:04:07.1]} 20... Bxf4 {[%clk 0:03:58.4]}
21. Rxh5 {[%clk 0:04:04.7]} 21... gxh5 {[%clk 0:03:58.3]} 22. Nb5 {[%clk
0:03:53.1]} 22... Kh8 {[%clk 0:03:53.8]} 23. Nxd6 {[%clk 0:03:50.6]} 23... Rg8+
{[%clk 0:03:51.7]} 24. Kf1 {[%clk 0:03:48.6]} 24... Rad8 {[%clk 0:03:48.5]} 25.
Nc4 {[%clk 0:03:44.1]} 25... Nxc4 {[%clk 0:03:45.1]} 26. Bxc4 {[%clk 0:03:42.9]}
26... Rd2 {[%clk 0:03:42.3]} 27. Qe1 {[%clk 0:03:38]} 27... h4 {[%clk
0:03:39.8]} 28. Bb3 {[%clk 0:03:31]} 28... h3 {[%clk 0:03:36.7]} 0-1

[Event "Live Chess"]
[Site "Chess.com"]
[Date "2024.06.02"]
[Round "-"]
[White "KyryloPoluliakh"]
[Black "Grace6363"]
[Result "1-0"]
[WhiteElo "1528"]
[BlackElo "1148"]
[TimeControl "300"]
[EndTime "4:48:53 PDT"]
[Termination "KyryloPoluliakh won by resignation"]

1. c4 {[%clk 0:04:54.8]} 1... c5 {[%clk 0:04:58.6]} 2. Nc3 {[%clk 0:04:52.1]}
2... Nc6 {[%clk 0:04:56.8]} 3. g3 {[%clk 0:04:51.5]} 3... d6 {[%clk 0:04:49.1]}
4. Bg2 {[%clk 0:04:50.1]} 4... Bf5 {[%clk 0:04:47.4]} 5. e3 {[%clk 0:04:44.5]}
5... e6 {[%clk 0:04:46.5]} 6. d4 {[%clk 0:04:42.5]} 6... cxd4 {[%clk 0:04:39.4]}
7. exd4 {[%clk 0:04:40.5]} 7... Nf6 {[%clk 0:04:30]} 8. Nge2 {[%clk 0:04:35.1]}
8... Na5 {[%clk 0:04:19.7]} 9. b3 {[%clk 0:04:29.7]} 9... Rb8 {[%clk 0:04:10.3]}
10. Kf1 {[%clk 0:04:22.7]} 10... Qc7 {[%clk 0:04:07.4]} 11. Bb2 {[%clk
0:04:10.7]} 11... a6 {[%clk 0:04:06]} 12. Nf4 {[%clk 0:04:06.3]} 12... e5 {[%clk
0:04:02]} 13. dxe5 {[%clk 0:04:02.3]} 13... dxe5 {[%clk 0:04:00.8]} 14. Nfd5
{[%clk 0:04:01.8]} 14... Nxd5 {[%clk 0:03:59.7]} 15. Nxd5 {[%clk 0:04:01.1]}
15... Qd7 {[%clk 0:03:52.5]} 16. Bxe5 {[%clk 0:03:53]} 16... Rd8 {[%clk
0:02:42.5]} 17. Nc7+ {[%clk 0:03:38.1]} 17... Ke7 {[%clk 0:02:34]} 18. Qxd7+
{[%clk 0:03:33]} 18... Rxd7 {[%clk 0:02:28.6]} 19. Nd5+ {[%clk 0:03:32.1]} 19...
Ke6 {[%clk 0:02:18.5]} 20. Re1 {[%clk 0:03:21]} 20... Bd3+ {[%clk 0:01:59.3]}
21. Kg1 {[%clk 0:03:17.3]} 21... Kf5 {[%clk 0:01:53.6]} 22. Bh3+ {[%clk
0:03:10.3]} 1-0